[Event "Kragero Resort Chess A 2019"]
[Site "Kragero"]
[Date "2019.02.21"]
[Round "3.21"]
[White "Schouten, Mathias Lind"]
[Black "Khachatryan, Vahagn"]
[Result "1/2-1/2"]
[ECO "B05"]
[WhiteElo "1943"]
[BlackElo "2274"]
[Annotator "NA"]
[PlyCount "94"]
[EventDate "2019.02.20"]
[EventType "swiss"]
[EventCountry "NOR"]
[SourceTitle "playchess.com"]
[Source "ChessBase"]
[SourceQuality "1"]
[TimeControl "5400+30"]

1. e4 {[%emt 0:00:00]} Nf6 {[%emt 0:00:38]} 2. e5 {[%emt 0:00:00]} Nd5 {[%emt 0:00:02]} 3. d4 {[%emt 0:00:00]} d6 {[%emt 0:00:03]} 4. Nf3 {[%emt 0:00:00]} Bg4 {[%emt 0:00:33]} 5. Be2 {[%emt 0:00:00]} c6 {[%emt 0:00:07]} 6. O-O {[%emt 0:01:26]} Bxf3 {[%emt 0:00:22]} 7. Bxf3 {[%emt 0:00:06]} dxe5 {[%emt 0:00:02]} 8. dxe5 {[%emt 0:00:07]} e6 {[%emt 0:00:03]} 9. Qe2 {[%emt 0:00:20]} Nd7 {[%emt 0:00:26]} 10. Rd1 {[%emt 0:00:57]} Qc7 {[%emt 0:01:19]} 11. Bxd5 {[%emt 0:01:26]} cxd5 {[%emt 0:00:20]} 12. f4 {[%emt 0:00:37]} Bc5+ {[%emt 0:01:13]} 13. Kh1 {[%emt 0:00:19]} O-O {[%emt 0:00:18]} 14. c3 {[%emt 0:00:25]} f6 {[%emt 0:02:24]} 15. exf6 {[%emt 0:01:22]} Nxf6 {[%emt 0:00:05]} 16. Qxe6+ {[%emt 0:01:26]} Kh8 {[%emt 0:00:03]} 17. Qe2 {[%emt 0:00:43]} Rae8 {[%emt 0:00:42]} 18. Qf3 {[%emt 0:00:50]} Ne4 {[%emt 0:08:29]} 19. Rf1 {[%emt 0:02:23]} Qb6 {[%emt 0:00:46]} 20. b4 {[%emt 0:08:58]} Bxb4 {[%emt 0:03:20]} 21. cxb4 {[%emt 0:00:27]} Qf6 {[%emt 0:01:16]} 22. Nc3 {[%emt 0:01:35]} Qxc3 {[%emt 0:02:32]} 23. Qxc3 {[%emt 0:00:06]} Nxc3 {[%emt 0:00:01]} 24. Bd2 {[%emt 0:00:25]} d4 {[%emt 0:02:14]} 25. Bxc3 {[%emt 0:02:35]} dxc3 {[%emt 0:00:02]} 26. Rac1 {[%emt 0:09:18]} Rc8 {[%emt 0:07:40]} 27. Rf3 {[%emt 0:00:45]} c2 {[%emt 0:03:19]} 28. Rf2 {[%emt 0:01:42]} Rfd8 {[%emt 0:04:34]} 29. Kg1 {[%emt 0:00:38]} Rd1+ {[%emt 0:00:05]} 30. Rf1 {[%emt 0:00:05]} Rxc1 {[%emt 0:06:08]} 31. Rxc1 {[%emt 0:00:07]} Kg8 {[%emt 0:00:01]} 32. Kf2 {[%emt 0:13:26]} Kf7 {[%emt 0:00:01]} 33. Ke3 {[%emt 0:05:02]} Ke6 {[%emt 0:00:20]} 34. a3 {[%emt 0:01:04]} Kf5 {[%emt 0:01:56]} 35. Kd2 {[%emt 0:08:48]} Kxf4 {[%emt 0:00:24]} 36. Rf1+ {[%emt 0:00:05]} Ke4 {[%emt 0:00:51]} 37. Kc1 {[%emt 0:00:11]} Rc7 {[%emt 0:00:54]} 38. Rf3 {[%emt 0:00:07]} g5 {[%emt 0:04:28]} 39. h3 {[%emt 0:03:48]} h6 {[%emt 0:01:07]} 40. Rf6 {[%emt 0:04:21]} Kd3 {[%emt 0:00:40]} 41. Rxh6 {[%emt 0:06:51]} Rf7 {[%emt 0:21:48]} 42. Kb2 {[%emt 0:00:45]} Rf2 {[%emt 0:00:21]} 43. g3 {[%emt 0:06:55]} Rg2 {[%emt 0:01:29]} 44. g4 {[%emt 0:02:54]} Rh2 {[%emt 0:04:17]} 45. Rh7 {[%emt 0:01:23]} Kd2 {[%emt 0:06:06]} 46. Rd7+ {[%emt 0:00:09]} Ke1 {[%emt 0:00:05]} 47. Kc1 {[%emt 0:02:55]} Rxh3 {[%emt 0:00:18]} 1/2-1/2

[Event "Kragero Resort Chess A 2019"]
[Site "Kragero"]
[Date "2019.02.21"]
[Round "3.22"]
[White "Gudmundsson, Bjorgvin S"]
[Black "Mashinskaya, Iulia"]
[Result "1-0"]
[ECO "D13"]
[WhiteElo "1941"]
[BlackElo "2261"]
[Annotator "NA"]
[PlyCount "82"]
[EventDate "2019.02.20"]
[EventType "swiss"]
[EventCountry "NOR"]
[SourceTitle "playchess.com"]
[Source "ChessBase"]
[SourceQuality "1"]
[TimeControl "5400+30"]

1. c4 {[%emt 0:00:25]} c6 {[%emt 0:01:04]} 2. Nc3 {[%emt 0:01:49]} d5 {[%emt 0:01:44]} 3. cxd5 {[%emt 0:00:14]} cxd5 {[%emt 0:00:05]} 4. d4 {[%emt 0:00:03]} Nf6 {[%emt 0:01:38]} 5. Nf3 {[%emt 0:02:24]} Nc6 {[%emt 0:00:22]} 6. Bf4 {[%emt 0:00:06]} e6 {[%emt 0:01:32]} 7. e3 {[%emt 0:00:15]} Nh5 {[%emt 0:06:05]} 8. Bg5 {[%emt 0:05:50]} Qb6 {[%emt 0:01:34]} 9. Qb3 {[%emt 0:12:44]} Qxb3 {[%emt 0:13:49]} 10. axb3 {[%emt 0:00:09]} h6 {[%emt 0:02:24]} 11. Bh4 {[%emt 0:02:10]} g5 {[%emt 0:06:17]} 12. Bg3 {[%emt 0:08:41]} Nxg3 {[%emt 0:07:13]} 13. hxg3 {[%emt 0:00:08]} Bg7 {[%emt 0:05:44]} 14. Be2 {[%emt 0:03:19]} Ke7 {[%emt 0:04:01]} 15. Nd2 {[%emt 0:13:09]} Bd7 {[%emt 0:04:02]} 16. f4 {[%emt 0:01:00]} Nb4 {[%emt 0:05:21]} 17. Rc1 {[%emt 0:10:02]} Rac8 {[%emt 0:08:34]} 18. Nf3 {[%emt 0:03:38]} f6 {[%emt 0:06:02]} 19. Kf2 {[%emt 0:17:22]} a6 {[%emt 0:08:24]} 20. Na4 {[%emt 0:04:45]} Bb5 {[%emt 0:06:18]} 21. Nb6 {[%emt 0:08:34]} Rc6 {[%emt 0:00:44]} 22. Rxc6 {[%emt 0:01:24]} Nxc6 {[%emt 0:01:46]} 23. Rc1 {[%emt 0:02:03]} Kd6 {[%emt 0:02:37]} 24. Ke1 {[%emt 0:01:07]} Bxe2 {[%emt 0:02:07]} 25. Kxe2 {[%emt 0:00:01]} Bf8 {[%emt 0:01:48]} 26. Rd1 {[%emt 0:00:37]} Kc7 {[%emt 0:00:44]} 27. Na4 {[%emt 0:00:10]} b6 {[%emt 0:00:49]} 28. Nc3 {[%emt 0:00:46]} Nb4 {[%emt 0:00:29]} 29. Rc1 {[%emt 0:00:26]} Kb7 {[%emt 0:00:19]} 30. Na4 {[%emt 0:00:30]} Be7 {[%emt 0:00:19]} 31. Kd2 {[%emt 0:00:09]} Nc6 {[%emt 0:00:29]} 32. Nc3 {[%emt 0:00:23]} Na5 {[%emt 0:00:24]} 33. Kc2 {[%emt 0:00:29]} b5 {[%emt 0:00:40]} 34. Nd2 {[%emt 0:00:01]} gxf4 {[%emt 0:00:25]} 35. exf4 {[%emt 0:01:03]} Nc6 {[%emt 0:00:49]} 36. Nf3 {[%emt 0:00:40]} Rg8 {[%emt 0:00:37]} 37. Ne2 {[%emt 0:00:04]} Nb4+ {[%emt 0:00:29]} 38. Kd2 {[%emt 0:00:04]} Bd6 {[%emt 0:00:30]} 39. Rh1 {[%emt 0:01:00]} Rc8 {[%emt 0:00:26]} 40. Ne1 {[%emt 0:00:11]} Bf8 {[%emt 0:00:05]} 41. Nd3 {[%emt 0:00:35]} Nxd3 {[%emt 0:01:00]} 1-0

[Event "Kragero Resort Chess A 2019"]
[Site "Kragero"]
[Date "2019.02.21"]
[Round "3.23"]
[White "Aarnes, Eirik"]
[Black "Sgircea, Silvia-Raluca"]
[Result "0-1"]
[ECO "B38"]
[WhiteElo "1843"]
[BlackElo "2251"]
[Annotator "NA"]
[PlyCount "106"]
[EventDate "2019.02.20"]
[EventType "swiss"]
[EventCountry "NOR"]
[SourceTitle "playchess.com"]
[Source "ChessBase"]
[SourceQuality "1"]
[TimeControl "5400+30"]

1. e4 {[%emt 0:00:00]} c5 {[%emt 0:00:00]} 2. Nf3 {[%emt 0:00:00]} Nc6 {[%emt 0:00:00]} 3. d4 {[%emt 0:00:00]} cxd4 {[%emt 0:00:00]} 4. Nxd4 {[%emt 0:00:00]} g6 {[%emt 0:00:00]} 5. c4 {[%emt 0:01:01]} Bg7 {[%emt 0:03:51]} 6. Be3 {[%emt 0:00:10]} d6 {[%emt 0:00:09]} 7. Nc3 {[%emt 0:01:18]} Nf6 {[%emt 0:00:07]} 8. Be2 {[%emt 0:00:10]} O-O {[%emt 0:00:14]} 9. O-O {[%emt 0:00:54]} Bd7 {[%emt 0:01:03]} 10. Rc1 {[%emt 0:02:46]} Nxd4 {[%emt 0:00:24]} 11. Bxd4 {[%emt 0:00:11]} Bc6 {[%emt 0:00:06]} 12. f3 {[%emt 0:17:52]} a5 {[%emt 0:00:13]} 13. Na4 {[%emt 0:09:37]} Bxa4 {[%emt 0:10:02]} 14. Qxa4 {[%emt 0:00:12]} Nxe4 {[%emt 0:00:31]} 15. Bxg7 {[%emt 0:01:15]} Nc5 {[%emt 0:00:02]} 16. Qb5 {[%emt 0:04:04]} Kxg7 {[%emt 0:00:08]} 17. f4 {[%emt 0:05:39]} Qc7 {[%emt 0:19:54]} 18. Rc3 {[%emt 0:05:14]} Ra6 {[%emt 0:05:13]} 19. Re3 {[%emt 0:02:49]} e6 {[%emt 0:01:55]} 20. b4 {[%emt 0:07:06]} axb4 {[%emt 0:02:21]} 21. Qxb4 {[%emt 0:00:14]} Rxa2 {[%emt 0:06:22]} 22. Qe1 {[%emt 0:01:37]} Rfa8 {[%emt 0:04:49]} 23. f5 {[%emt 0:02:17]} exf5 {[%emt 0:04:31]} 24. Rxf5 {[%emt 0:05:23]} R8a3 {[%emt 0:06:55]} 25. Rff3 {[%emt 0:04:43]} Rxe3 {[%emt 0:02:37]} 26. Rxe3 {[%emt 0:01:21]} Qa5 {[%emt 0:02:31]} 27. Qxa5 {[%emt 0:03:12]} Rxa5 {[%emt 0:00:02]} 28. Re7 {[%emt 0:00:09]} Kf6 {[%emt 0:00:11]} 29. Rc7 {[%emt 0:00:07]} Ra1+ {[%emt 0:05:20]} 30. Kf2 {[%emt 0:00:09]} Ra2 {[%emt 0:00:04]} 31. Ke1 {[%emt 0:01:49]} Rb2 {[%emt 0:04:25]} 32. h3 {[%emt 0:01:45]} h5 {[%emt 0:01:13]} 33. Kd1 {[%emt 0:01:29]} Na6 {[%emt 0:03:53]} 34. Rc8 {[%emt 0:01:05]} Ke7 {[%emt 0:03:19]} 35. Bf3 {[%emt 0:00:38]} b5 {[%emt 0:01:29]} 36. Ra8 {[%emt 0:03:49]} Nc5 {[%emt 0:00:16]} 37. Rb8 {[%emt 0:00:17]} b4 {[%emt 0:01:02]} 38. Bd5 {[%emt 0:02:06]} b3 {[%emt 0:00:22]} 39. Kc1 {[%emt 0:01:16]} Re2 {[%emt 0:03:41]} 40. Kb1 {[%emt 0:01:40]} Kf6 {[%emt 0:00:54]} 41. Rf8 {[%emt 0:00:20]} Re7 {[%emt 0:00:11]} 42. Kb2 {[%emt 0:00:31]} Ra7 {[%emt 0:00:22]} 43. Kb1 {[%emt 0:00:59]} g5 {[%emt 0:02:13]} 44. Kb2 {[%emt 0:02:04]} Kg6 {[%emt 0:00:51]} 45. Rd8 {[%emt 0:03:24]} Ra6 {[%emt 0:00:01]} 46. Rg8+ {[%emt 0:00:58]} Kf6 {[%emt 0:00:39]} 47. Rf8 {[%emt 0:00:24]} Ra7 {[%emt 0:00:05]} 48. Rd8 {[%emt 0:00:20]} Ke5 {[%emt 0:00:34]} 49. Rg8 {[%emt 0:00:32]} f6 {[%emt 0:00:24]} 50. Re8+ {[%emt 0:00:43]} Kd4 {[%emt 0:00:24]} 51. Rd8 {[%emt 0:00:32]} Ra2+ {[%emt 0:00:07]} 52. Kb1 {[%emt 0:00:05]} Kc3 {[%emt 0:00:32]} 53. Rxd6 {[%emt 0:02:44]} Rd2 {[%emt 0:00:06]} 0-1

[Event "Kragero Resort Chess A 2019"]
[Site "Kragero"]
[Date "2019.02.21"]
[Round "3.24"]
[White "Eliseev, Sergey"]
[Black "Fossum, Oystein Boyum"]
[Result "0-1"]
[ECO "A05"]
[WhiteElo "1794"]
[BlackElo "2250"]
[Annotator "NA"]
[PlyCount "86"]
[EventDate "2019.02.20"]
[EventType "swiss"]
[EventCountry "NOR"]
[SourceTitle "playchess.com"]
[Source "ChessBase"]
[SourceQuality "1"]
[TimeControl "5400+30"]

1. e4 {[%emt 0:00:00]} c5 {[%emt 0:00:00]} 2. Nf3 {[%emt 0:00:00]} Nc6 {[%emt 0:00:55]} 3. g3 {[%emt 0:00:00]} g6 {[%emt 0:02:53]} 4. d3 {[%emt 0:00:15]} Bg7 {[%emt 0:00:20]} 5. Bg2 {[%emt 0:00:20]} Nf6 {[%emt 0:04:58]} 6. c3 {[%emt 0:00:31]} O-O {[%emt 0:02:56]} 7. O-O {[%emt 0:00:23]} e5 {[%emt 0:11:53]} 8. Re1 {[%emt 0:00:38]} d6 {[%emt 0:02:07]} 9. a3 {[%emt 0:02:31]} a5 {[%emt 0:03:56]} 10. a4 {[%emt 0:00:06]} Ne8 {[%emt 0:05:34]} 11. Na3 {[%emt 0:06:13]} f5 {[%emt 0:03:51]} 12. Qb3+ {[%emt 0:23:06]} Kh8 {[%emt 0:00:44]} 13. exf5 {[%emt 0:06:39]} Rxf5 {[%emt 0:07:53]} 14. Nc4 {[%emt 0:19:07]} Ra6 {[%emt 0:09:00]} 15. Ne3 {[%emt 0:02:38]} Rf8 {[%emt 0:06:03]} 16. h4 {[%emt 0:15:12]} Nf6 {[%emt 0:03:15]} 17. Ng5 {[%emt 0:02:17]} Qe7 {[%emt 0:05:57]} 18. Nd5 {[%emt 0:04:57]} Nxd5 {[%emt 0:05:53]} 19. Bxd5 {[%emt 0:00:23]} Nd8 {[%emt 0:00:43]} 20. Bc4 {[%emt 0:03:30]} Ra8 {[%emt 0:01:56]} 21. Ne4 {[%emt 0:02:12]} Qc7 {[%emt 0:04:11]} 22. Bg5 {[%emt 0:02:50]} Nc6 {[%emt 0:05:16]} 23. Be6 {[%emt 0:02:50]} h6 {[%emt 0:01:05]} 24. Be3 {[%emt 0:00:43]} Qe7 {[%emt 0:00:49]} 25. Bxc8 {[%emt 0:00:48]} Raxc8 {[%emt 0:00:10]} 26. Qd5 {[%emt 0:00:41]} Rcd8 {[%emt 0:00:30]} 27. Kg2 {[%emt 0:00:57]} Qd7 {[%emt 0:01:11]} 28. Rh1 {[%emt 0:01:29]} Ne7 {[%emt 0:01:03]} 29. Qb3 {[%emt 0:00:29]} Nf5 {[%emt 0:01:30]} 30. Rae1 {[%emt 0:01:21]} b6 {[%emt 0:05:37]} 31. Ng5 {[%emt 0:01:49]} d5 {[%emt 0:01:19]} 32. Nf3 {[%emt 0:00:18]} Qc6 {[%emt 0:00:53]} 33. Bc1 {[%emt 0:00:39]} e4 {[%emt 0:00:37]} 34. dxe4 {[%emt 0:00:15]} dxe4 {[%emt 0:00:17]} 35. Ng5 {[%emt 0:00:24]} c4 {[%emt 0:00:38]} 36. Qc2 {[%emt 0:00:52]} hxg5 {[%emt 0:00:23]} 37. h5 {[%emt 0:00:31]} e3+ {[%emt 0:00:40]} 38. f3 {[%emt 0:00:32]} Nh4+ {[%emt 0:01:19]} 39. gxh4 {[%emt 0:00:06]} Qxf3+ {[%emt 0:00:26]} 40. Kh2 {[%emt 0:00:24]} Rd2+ {[%emt 0:00:36]} 41. Bxd2 {[%emt 0:00:34]} Qf2+ {[%emt 0:00:11]} 42. Kh3 {[%emt 0:00:05]} Rf3+ {[%emt 0:00:08]} 43. Kg4 {[%emt 0:00:04]} Rg3# {[%emt 0:00:11]} 0-1

[Event "Kragero Resort Chess A 2019"]
[Site "Kragero"]
[Date "2019.02.21"]
[Round "3.25"]
[White "Nordquelle, Daniel"]
[Black "Shehzad, Shazil"]
[Result "1-0"]
[ECO "B09"]
[WhiteElo "2235"]
[BlackElo "1959"]
[Annotator "NA"]
[PlyCount "71"]
[EventDate "2019.02.20"]
[EventType "swiss"]
[EventCountry "NOR"]
[SourceTitle "playchess.com"]
[Source "ChessBase"]
[SourceQuality "1"]
[TimeControl "5400+30"]

1. e4 {[%emt 0:00:00]} g6 {[%emt 0:00:00]} 2. d4 {[%emt 0:00:00]} Bg7 {[%emt 0:00:00]} 3. Nc3 {[%emt 0:00:00]} d6 {[%emt 0:00:00]} 4. f4 {[%emt 0:00:27]} Nf6 {[%emt 0:00:00]} 5. Nf3 {[%emt 0:00:11]} O-O {[%emt 0:00:00]} 6. Bd3 {[%emt 0:02:08]} Nc6 {[%emt 0:00:36]} 7. e5 {[%emt 0:03:26]} dxe5 {[%emt 0:04:02]} 8. dxe5 {[%emt 0:01:24]} Nd5 {[%emt 0:00:36]} 9. Nxd5 {[%emt 0:02:50]} Qxd5 {[%emt 0:00:06]} 10. Qe2 {[%emt 0:01:12]} Bg4 {[%emt 0:01:55]} 11. Be4 {[%emt 0:00:28]} Qe6 {[%emt 0:02:14]} 12. Be3 {[%emt 0:04:36]} f6 {[%emt 0:05:51]} 13. Qb5 {[%emt 0:17:45]} Rad8 {[%emt 0:02:08]} 14. c4 {[%emt 0:00:17]} Kh8 {[%emt 0:01:37]} 15. Bd5 {[%emt 0:06:52]} Qc8 {[%emt 0:01:40]} 16. exf6 {[%emt 0:00:23]} exf6 {[%emt 0:00:36]} 17. O-O {[%emt 0:00:14]} Rfe8 {[%emt 0:00:41]} 18. Bc5 {[%emt 0:10:01]} Be6 {[%emt 0:05:41]} 19. Rfe1 {[%emt 0:17:24]} a6 {[%emt 0:01:12]} 20. Qb3 {[%emt 0:01:05]} Na5 {[%emt 0:03:30]} 21. Qc3 {[%emt 0:02:30]} b6 {[%emt 0:01:48]} 22. Bd4 {[%emt 0:00:36]} Bxd5 {[%emt 0:03:29]} 23. cxd5 {[%emt 0:09:13]} Rf8 {[%emt 0:09:50]} 24. b4 {[%emt 0:00:16]} Nb7 {[%emt 0:00:18]} 25. Re7 {[%emt 0:00:09]} Rd7 {[%emt 0:00:52]} 26. Rae1 {[%emt 0:02:39]} Nd6 {[%emt 0:02:54]} 27. Qc6 {[%emt 0:01:34]} Rxe7 {[%emt 0:01:24]} 28. Rxe7 {[%emt 0:00:11]} Nb5 {[%emt 0:00:55]} 29. Bf2 {[%emt 0:05:06]} Qa8 {[%emt 0:08:22]} 30. a4 {[%emt 0:00:55]} Qxc6 {[%emt 0:00:27]} 31. dxc6 {[%emt 0:00:07]} Nc3 {[%emt 0:00:12]} 32. Rxc7 {[%emt 0:00:20]} Nxa4 {[%emt 0:00:05]} 33. Rd7 {[%emt 0:02:59]} Nc3 {[%emt 0:00:55]} 34. c7 {[%emt 0:00:17]} Nb5 {[%emt 0:00:09]} 35. Bxb6 {[%emt 0:00:08]} Kg8 {[%emt 0:00:53]} 36. Nd4 {[%emt 0:00:59]} 1-0

[Event "Kragero Resort Chess A 2019"]
[Site "Kragero"]
[Date "2019.02.21"]
[Round "3.26"]
[White "Sidali, Elias Hulleberg"]
[Black "Birkisson, Bardur Orn"]
[Result "0-1"]
[ECO "C47"]
[WhiteElo "1840"]
[BlackElo "2233"]
[Annotator "NA"]
[PlyCount "116"]
[EventDate "2019.02.20"]
[EventType "swiss"]
[EventCountry "NOR"]
[SourceTitle "playchess.com"]
[Source "ChessBase"]
[SourceQuality "1"]
[TimeControl "5400+30"]

1. e4 {[%emt 0:00:00]} e5 {[%emt 0:00:00]} 2. Nf3 {[%emt 0:00:00]} Nc6 {[%emt 0:00:00]} 3. Nc3 {[%emt 0:00:00]} Nf6 {[%emt 0:00:14]} 4. Be2 {[%emt 0:00:00]} g6 {[%emt 0:04:32]} 5. d4 {[%emt 0:02:50]} exd4 {[%emt 0:00:42]} 6. Nxd4 {[%emt 0:00:11]} d6 {[%emt 0:01:02]} 7. Bg5 {[%emt 0:09:16]} h6 {[%emt 0:04:38]} 8. Be3 {[%emt 0:00:39]} Bg7 {[%emt 0:00:49]} 9. Qd2 {[%emt 0:00:18]} Ng4 {[%emt 0:08:21]} 10. Nxc6 {[%emt 0:00:22]} bxc6 {[%emt 0:00:08]} 11. Bxg4 {[%emt 0:00:16]} Bxg4 {[%emt 0:00:26]} 12. h3 {[%emt 0:01:33]} Be6 {[%emt 0:00:52]} 13. Bd4 {[%emt 0:00:05]} O-O {[%emt 0:01:27]} 14. Bxg7 {[%emt 0:00:38]} Kxg7 {[%emt 0:00:09]} 15. Rd1 {[%emt 0:03:33]} Rb8 {[%emt 0:18:53]} 16. b3 {[%emt 0:00:44]} Kh7 {[%emt 0:03:19]} 17. O-O {[%emt 0:04:27]} f5 {[%emt 0:01:26]} 18. exf5 {[%emt 0:00:27]} Bxf5 {[%emt 0:00:21]} 19. Ne2 {[%emt 0:00:41]} Qf6 {[%emt 0:07:06]} 20. Qd4 {[%emt 0:01:10]} Qxd4 {[%emt 0:06:22]} 21. Nxd4 {[%emt 0:00:08]} Bd7 {[%emt 0:00:25]} 22. c4 {[%emt 0:03:43]} c5 {[%emt 0:01:59]} 23. Nc2 {[%emt 0:00:06]} a5 {[%emt 0:00:33]} 24. Rfe1 {[%emt 0:00:21]} Rf7 {[%emt 0:02:13]} 25. Re3 {[%emt 0:01:34]} Bc6 {[%emt 0:05:31]} 26. Rde1 {[%emt 0:00:42]} Kg7 {[%emt 0:00:38]} 27. a4 {[%emt 0:02:39]} g5 {[%emt 0:13:54]} 28. Na3 {[%emt 0:00:28]} Kf8 {[%emt 0:01:41]} 29. Rd1 {[%emt 0:00:33]} Re8 {[%emt 0:00:57]} 30. Rxe8+ {[%emt 0:00:19]} Kxe8 {[%emt 0:01:50]} 31. Nc2 {[%emt 0:01:17]} h5 {[%emt 0:00:48]} 32. Ne3 {[%emt 0:00:19]} Kd7 {[%emt 0:03:09]} 33. Rd2 {[%emt 0:01:31]} Rf4 {[%emt 0:00:36]} 34. Kf1 {[%emt 0:03:21]} Rf8 {[%emt 0:02:37]} 35. Kg1 {[%emt 0:00:50]} Rb8 {[%emt 0:01:37]} 36. Rd3 {[%emt 0:01:23]} Be4 {[%emt 0:00:08]} 37. Rc3 {[%emt 0:00:05]} Bb1 {[%emt 0:01:30]} 38. Nf1 {[%emt 0:00:33]} Re8 {[%emt 0:00:23]} 39. Ne3 {[%emt 0:00:08]} c6 {[%emt 0:01:09]} 40. Kh2 {[%emt 0:03:21]} Ke6 {[%emt 0:00:33]} 41. Rc1 {[%emt 0:01:02]} Ba2 {[%emt 0:01:30]} 42. Ra1 {[%emt 0:02:14]} Bxb3 {[%emt 0:00:07]} 43. Rb1 {[%emt 0:00:06]} Rb8 {[%emt 0:00:50]} 44. Nc2 {[%emt 0:00:06]} d5 {[%emt 0:00:11]} 45. cxd5+ {[%emt 0:02:25]} cxd5 {[%emt 0:00:16]} 46. Na1 {[%emt 0:00:16]} c4 {[%emt 0:00:13]} 47. Nc2 {[%emt 0:00:01]} Ke5 {[%emt 0:00:44]} 48. Re1+ {[%emt 0:00:07]} Kd6 {[%emt 0:00:12]} 49. Nd4 {[%emt 0:02:55]} Bxa4 {[%emt 0:00:19]} 50. Nf5+ {[%emt 0:00:36]} Kc5 {[%emt 0:00:10]} 51. Re5 {[%emt 0:00:26]} c3 {[%emt 0:00:43]} 52. Ne3 {[%emt 0:00:17]} c2 {[%emt 0:00:42]} 53. Rxd5+ {[%emt 0:00:14]} Kc6 {[%emt 0:00:06]} 54. Rxa5 {[%emt 0:00:29]} c1=Q {[%emt 0:00:35]} 55. Rxa4 {[%emt 0:00:11]} Kb5 {[%emt 0:00:41]} 56. Rd4 {[%emt 0:01:04]} Qc7+ {[%emt 0:00:15]} 57. g3 {[%emt 0:00:11]} Rd8 {[%emt 0:00:05]} 58. Nd5 {[%emt 0:00:45]} Qa5 {[%emt 0:00:56]} 0-1

[Event "Kragero Resort Chess A 2019"]
[Site "Kragero"]
[Date "2019.02.21"]
[Round "3.27"]
[White "Kazarian, Anna-Maja"]
[Black "Tunsjo, Axel"]
[Result "1/2-1/2"]
[ECO "B47"]
[WhiteElo "2189"]
[BlackElo "1937"]
[Annotator "NA"]
[PlyCount "91"]
[EventDate "2019.02.20"]
[EventType "swiss"]
[EventCountry "NOR"]
[SourceTitle "playchess.com"]
[Source "ChessBase"]
[SourceQuality "1"]
[TimeControl "5400+30"]

1. e4 {[%emt 0:00:00]} c5 {[%emt 0:00:00]} 2. Nf3 {[%emt 0:00:00]} e6 {[%emt 0:00:56]} 3. d4 {[%emt 0:00:00]} cxd4 {[%emt 0:00:12]} 4. Nxd4 {[%emt 0:00:00]} Nc6 {[%emt 0:00:16]} 5. Nc3 {[%emt 0:01:09]} Qc7 {[%emt 0:00:05]} 6. g3 {[%emt 0:00:31]} a6 {[%emt 0:01:07]} 7. Bg2 {[%emt 0:00:04]} Nf6 {[%emt 0:02:32]} 8. O-O {[%emt 0:01:24]} Be7 {[%emt 0:00:14]} 9. Re1 {[%emt 0:03:34]} Nxd4 {[%emt 0:08:10]} 10. Qxd4 {[%emt 0:00:06]} d6 {[%emt 0:00:06]} 11. a4 {[%emt 0:07:46]} b6 {[%emt 0:04:02]} 12. a5 {[%emt 0:16:26]} b5 {[%emt 0:02:45]} 13. e5 {[%emt 0:03:54]} dxe5 {[%emt 0:00:10]} 14. Qb6 {[%emt 0:00:08]} Qxb6 {[%emt 0:02:34]} 15. axb6 {[%emt 0:00:04]} Rb8 {[%emt 0:00:42]} 16. Be3 {[%emt 0:16:31]} O-O {[%emt 0:02:56]} 17. Red1 {[%emt 0:18:12]} Ng4 {[%emt 0:02:27]} 18. b7 {[%emt 0:00:12]} Bxb7 {[%emt 0:00:19]} 19. Ba7 {[%emt 0:00:35]} Ra8 {[%emt 0:03:13]} 20. Rd7 {[%emt 0:01:01]} Bxg2 {[%emt 0:01:32]} 21. Kxg2 {[%emt 0:00:39]} Bb4 {[%emt 0:01:26]} 22. Ne4 {[%emt 0:06:23]} f5 {[%emt 0:05:37]} 23. Ng5 {[%emt 0:05:34]} Nf6 {[%emt 0:04:08]} 24. Rb7 {[%emt 0:01:11]} h6 {[%emt 0:11:27]} 25. Nxe6 {[%emt 0:01:39]} Rf7 {[%emt 0:00:10]} 26. Rxf7 {[%emt 0:03:31]} Kxf7 {[%emt 0:00:59]} 27. Rxa6 {[%emt 0:00:05]} Ne8 {[%emt 0:01:39]} 28. f4 {[%emt 0:05:44]} exf4 {[%emt 0:06:43]} 29. gxf4 {[%emt 0:00:49]} Bd6 {[%emt 0:10:15]} 30. Nd4 {[%emt 0:01:39]} Bxf4 {[%emt 0:07:09]} 31. Nxb5 {[%emt 0:00:05]} Nc7 {[%emt 0:00:22]} 32. Ra5 {[%emt 0:06:20]} Bxh2 {[%emt 0:02:48]} 33. Kxh2 {[%emt 0:00:30]} Nxb5 {[%emt 0:00:02]} 34. Rxb5 {[%emt 0:00:29]} Rxa7 {[%emt 0:00:03]} 35. Rxf5+ {[%emt 0:00:04]} Ke6 {[%emt 0:00:41]} 36. Rc5 {[%emt 0:00:32]} Rb7 {[%emt 0:00:57]} 37. b3 {[%emt 0:00:04]} Rb6 {[%emt 0:00:06]} 38. Kg3 {[%emt 0:01:05]} Rb4 {[%emt 0:00:42]} 39. Rc7 {[%emt 0:00:39]} Kf6 {[%emt 0:00:26]} 40. Rc6+ {[%emt 0:00:21]} Kf5 {[%emt 0:00:58]} 41. Rc5+ {[%emt 0:00:10]} Kg6 {[%emt 0:01:02]} 42. Ra5 {[%emt 0:00:44]} Kf6 {[%emt 0:00:45]} 43. Ra6+ {[%emt 0:00:29]} Kf5 {[%emt 0:00:08]} 44. Ra5+ {[%emt 0:00:16]} Kf6 {[%emt 0:00:07]} 45. Ra6+ {[%emt 0:01:02]} Kf5 {[%emt 0:00:03]} 46. Ra5+ {[%emt 0:00:16] Ke5 [%emt 00:00:15]} 1/2-1/2

[Event "Kragero Resort Chess A 2019"]
[Site "Kragero"]
[Date "2019.02.21"]
[Round "3.28"]
[White "Sebastian, Andreas"]
[Black "Skjolingstad, Sverre"]
[Result "1-0"]
[ECO "D02"]
[WhiteElo "1962"]
[BlackElo "1782"]
[Annotator "NA"]
[PlyCount "57"]
[EventDate "2019.02.20"]
[EventType "swiss"]
[EventCountry "NOR"]
[SourceTitle "playchess.com"]
[Source "ChessBase"]
[SourceQuality "1"]
[TimeControl "5400+30"]

1. d4 {[%emt 0:00:00]} Nf6 {[%emt 0:01:49]} 2. Bf4 {[%emt 0:00:00]} c5 {[%emt 0:00:27]} 3. e3 {[%emt 0:00:23]} b6 {[%emt 0:05:54]} 4. c3 {[%emt 0:04:14]} Bb7 {[%emt 0:00:23]} 5. Nd2 {[%emt 0:00:21]} e6 {[%emt 0:05:52]} 6. Ngf3 {[%emt 0:00:32]} Be7 {[%emt 0:02:47]} 7. Bd3 {[%emt 0:04:40]} O-O {[%emt 0:03:17]} 8. h3 {[%emt 0:07:42]} d5 {[%emt 0:02:57]} 9. O-O {[%emt 0:00:56]} Nbd7 {[%emt 0:02:29]} 10. Qe2 {[%emt 0:01:22]} Ne4 {[%emt 0:04:06]} 11. Ne5 {[%emt 0:05:40]} Nxe5 {[%emt 0:08:30]} 12. dxe5 {[%emt 0:00:17]} Nxd2 {[%emt 0:06:04]} 13. Qxd2 {[%emt 0:00:14]} Bg5 {[%emt 0:10:43]} 14. Bxg5 {[%emt 0:09:39]} Qxg5 {[%emt 0:00:24]} 15. f4 {[%emt 0:00:12]} Qe7 {[%emt 0:01:43]} 16. Qc2 {[%emt 0:02:35]} h6 {[%emt 0:00:30]} 17. Qf2 {[%emt 0:03:51]} f6 {[%emt 0:04:27]} 18. Qh4 {[%emt 0:05:02]} Qe8 {[%emt 0:05:10]} 19. Kh2 {[%emt 0:05:02]} fxe5 {[%emt 0:06:39]} 20. fxe5 {[%emt 0:01:09]} Qd7 {[%emt 0:03:17]} 21. Qh5 {[%emt 0:02:36]} Rxf1 {[%emt 0:01:35]} 22. Rxf1 {[%emt 0:00:13]} Rf8 {[%emt 0:00:42]} 23. Bh7+ {[%emt 0:01:20]} Kxh7 {[%emt 0:00:41]} 24. Rxf8 {[%emt 0:00:07]} d4 {[%emt 0:02:18]} 25. exd4 {[%emt 0:01:48]} cxd4 {[%emt 0:00:53]} 26. Qf7 {[%emt 0:00:54]} Qd5 {[%emt 0:00:24]} 27. Qg8+ {[%emt 0:00:11]} Kg6 {[%emt 0:00:08]} 28. Rf6+ {[%emt 0:00:21]} Kh5 {[%emt 0:00:17]} 29. Qf7+ {[%emt 0:00:40]} 1-0